fUSD/lending_fUSD_20250916
["ID","MTS","AMOUNT","RATE_DAILY","PERIOD"]
[385764858,1758029177705,-1000.0,0.00024598,2]
[385764859,1758029177726,-4413.43,0.00024642,7]
[385764860,1758029177748,-400.0,0.00024657,10]
[385764861,1758029177770,-267.46074303,0.00024667,2]
[385764862,1758029177793,-1000.0,0.00024674,2]
[385764863,1758029178381,-500.0,0.00024675,2]
[385764864,1758029178433,-1000.0,0.0002468,2]
[385764865,1758029178456,-16580.599,0.00024692,2]
[385764866,1758029178477,-726.0,0.00024692,2]
[385764867,1758029178498,-3274.966,0.00024692,2]
[385764868,1758029178519,-1178.0,0.00024692,2]
[385764869,1758029178541,-898.0,0.00024692,2]
[385764870,1758029178562,-1425.0,0.00024722,2]
[385764871,1758029178584,-5513.0,0.000248,5]
[385764872,1758029178605,-150.0,0.00024839,2]
[385764873,1758029178628,-345.8,0.00024873,8]
[385764874,1758029178650,-322.6107,0.00024885,2]
[385764875,1758029178672,-151.0,0.000249,2]
[385764876,1758029178697,-19193.89439916,0.000249,2]
[385764877,1758029178719,-1000.0,0.00024948,2]
[385764878,1758029178740,-1000.0,0.00024948,2]
[385764879,1758029178764,-174.0,0.00024989,2]
[385764880,1758029178786,-3868.4471365,0.00025,2]
[385764881,1758029178809,-6411.42825093,0.00025,2]
[385764882,1758029178832,-200.0,0.00025,2]
[385764883,1758029179491,241.26929918,0.00025,2]
[385764884,1758029188623,-168.0,0.00025028,2]
[385764885,1758029188647,-548.0,0.00025044,2]
[385764886,1758029188671,-176.0,0.00025066,2]
[385764887,1758029188695,-174.0,0.00025099,2]
[385764888,1758029188716,-200.0,0.000251,7]
[385764889,1758029188742,-1759.72509,0.000251,2]
[385764890,1758029188763,-500.0,0.00025129,5]
[385764891,1758029188784,-203.0,0.0002518,2]
[385764892,1758029188806,-150.0,0.000252,4]
[385764893,1758029188832,-150.0,0.000252,4]
[385764894,1758029188854,-150.0,0.000252,4]
[385764895,1758029188876,-150.98072581,0.000252,4]
[385764896,1758029188898,-150.0,0.000252,4]
[385764897,1758029188923,-150.0,0.000252,4]
[385764898,1758029188945,-150.0,0.000252,4]
[385764899,1758029188967,-150.0,0.000252,4]
[385764900,1758029188996,-151.18438881,0.000252,4]
[385764901,1758029189019,-150.0,0.000252,4]
[385764902,1758029189040,-150.0,0.000252,4]
[385764903,1758029189062,-150.0,0.000252,4]
[385764904,1758029189084,-150.0,0.000252,4]
[385764905,1758029189105,-150.0,0.000252,4]
[385764906,1758029189128,-150.0,0.000252,4]
[385764907,1758029189150,-150.0,0.000252,4]
[385764908,1758029189175,-168.0,0.00025244,2]
[385764909,1758029189196,-1000.0,0.00025244,2]
[385764910,1758029189218,-1000.0,0.00025244,2]
[385764911,1758029189243,-1000.0,0.00025244,2]
[385764912,1758029189265,-1000.0,0.00025244,2]
[385764913,1758029189287,-1000.0,0.0002525,2]
[385764914,1758029189310,-1000.0,0.0002525,2]
[385764915,1758029189333,-1000.0,0.0002525,2]
[385764916,1758029189355,-1000.0,0.0002525,2]
[385764917,1758029189379,-176.0,0.0002525,2]
[385764918,1758029189403,-449.0,0.0002525,2]
[385764919,1758029189425,-108.57373009,0.0002525,2]
[385764922,1758029273153,3191.16380422,0.00018,2]
[385764923,1758029273174,5210.11380422,0.00018,2]
[385764924,1758029273195,4552.16391712,0.00018,2]
[385764925,1758029290695,657.9498871,0.0001439,2]
[385764926,1758029290717,1316.1707369,0.0001439,2]
[385764933,1758029317451,351.69683735,0.0001901,7]
[385764954,1758029432745,-428.0,0.00020202,2]
[385764993,1758029433174,-49.31705539,0.00020202,2]
[385764995,1758029433184,-546.32237134,0.0002046,2]
[385764998,1758029433206,-453.67762866,0.0002046,2]
[385765000,1758029433216,-854.53845774,0.00020555,2]
[385765002,1758029433227,-401.1595032,0.00020555,2]
[385765004,1758029433239,-716.63995887,0.00020555,2]
[385765007,1758029433252,-6437.20665974,0.00020555,2]
[385765009,1758029433264,-750.52236799,0.0002085,2]
[385765011,1758029433275,-1176.87019707,0.00022,2]
[385765013,1758029433286,-515.95536276,0.00022922,2]
[385765015,1758029433296,-227.33241567,0.00023529,7]
[385765017,1758029433306,-150.0,0.00023532,2]
[385765019,1758029433316,-300.0,0.00023654,2]
[385765021,1758029433326,-150.0,0.00023662,2]
[385765023,1758029433335,-157.59457916,0.00023664,2]
[385765025,1758029433345,-1425.0,0.00023784,2]
[385765027,1758029433355,-1425.0,0.00023798,2]
[385765029,1758029433365,-150.0,0.00023827,2]
[385765031,1758029433374,-150.0,0.00023849,2]
[385765033,1758029433385,-431.38721135,0.00023869,2]
[385765035,1758029433394,-1000.0,0.00023873,2]
[385765037,1758029433404,-157.19842002,0.00023905,2]
[385765039,1758029433414,-5000.00084444,0.00024,5]
[385765041,1758029433424,-169.18,0.00024556,2]
[385765043,1758029433434,-415.52,0.00024569,3]
[385765045,1758029433443,-610.0,0.00024691,2]
[385765047,1758029433452,-6159.703,0.00024727,2]
[385765049,1758029433462,-4171.0,0.00024727,2]
[385765051,1758029433472,-755.0,0.00024727,2]
[385765053,1758029433482,-1425.0,0.00024738,2]
[385765055,1758029433491,-1425.0,0.00024777,2]
[385765057,1758029433501,-1425.0,0.00024819,2]
[385765059,1758029433513,-1158.86705679,0.0002488,7]
[385765061,1758029433523,-267.46074303,0.00024885,2]
[385765063,1758029433532,-322.6107,0.00024885,2]
[385765065,1758029433542,-18426.13862304,0.000249,2]
[385765067,1758029433552,-250.0,0.00025194,2]
[385765069,1758029433562,-41.42626991,0.0002525,2]
[385765071,1758029433572,-754.82,0.00025268,6]
[385765073,1758029433581,-1000.0,0.0002527,2]
[385765075,1758029433591,-1000.0,0.0002527,2]
[385765077,1758029433600,-1000.0,0.0002527,2]
[385765079,1758029433609,-150.0,0.000253,5]
[385765081,1758029433619,-168.0,0.00025402,2]
[385765083,1758029433628,-1759.72509,0.0002542,2]
[385765085,1758029433638,-176.0,0.00025499,2]
[385765087,1758029433648,-286.0,0.000255,2]
[385765089,1758029433657,-150.0,0.00025524,2]
[385765091,1758029433667,-5184.22585616,0.00025542,2]
[385765093,1758029433676,-9387.1189305,0.00025556,2]
[385765095,1758029433686,-150.0,0.000256,4]
[385765097,1758029433696,-166.74,0.00025642,2]
[385765099,1758029433705,-150.0,0.00025667,4]
[385765101,1758029433716,-150.0,0.00025677,5]
[385765103,1758029433725,-168.0,0.00025726,2]
[385765105,1758029433735,-150.0,0.0002576,2]
[385765107,1758029433744,-1000.0,0.0002576,2]
[385765109,1758029433754,-1000.0,0.0002576,2]
[385765111,1758029433767,-150.0,0.0002576,4]
[385765113,1758029433776,-150.0,0.0002576,4]
[385765115,1758029433785,-150.0,0.0002576,4]
[385765117,1758029433794,-176.0,0.00025767,2]
[385765119,1758029433804,-249.0,0.00025798,2]
[385765121,1758029433813,-229.31499431,0.00025877,2]
[385765123,1758029433823,-1000.0,0.0002589,2]
[385765125,1758029433833,-628.802228,0.0002589,2]
[385765127,1758029433845,-335.47547823,0.0002589,2]
[385765130,1758029433874,-35.72229377,0.0002589,2]
[385765131,1758029433884,-1000.0,0.0002589,2]
[385765132,1758029433894,-150.0,0.000259,4]
[385765133,1758029433903,-150.0,0.000259,4]
[385765134,1758029433912,-1759.72509,0.0002592,2]
[385765135,1758029433922,-150.72,0.00025922,2]
[385765136,1758029433932,-500.0,0.0002593,5]
[385765137,1758029433941,-268.94968469,0.00025995,2]
[385765138,1758029433955,-1000.0,0.00026,3]
[385765139,1758029433965,-1070.88648632,0.00026,2]
[385765140,1758029433974,-4433.65,0.00026,2]
[385765141,1758029433984,-3750.86227355,0.00026,2]
[385765153,1758029438140,-878.25,0.00024727,2]
[385765154,1758029438253,-631.84991162,0.00024727,2]
[385765155,1758029439175,-1879.90008838,0.00024727,2]
[385765156,1758029439186,-285.69180713,0.00026,2]
[385765157,1758029439403,-144.57183342,0.00026,2]
[385765158,1758029439412,-212.41374408,0.00026,2]
[385765159,1758029439421,-5322.74941241,0.00026,10]
[385765162,1758029440339,-6479.06348603,0.00026,10]
[385765163,1758029440561,-289.70471162,0.00026,10]
[385765354,1758029443809,-163.84718047,0.00026,10]
[385765355,1758029443819,-168.0,0.00026,7]
[385765356,1758029443828,-152.0,0.00026,7]
[385765357,1758029443838,-1002.71,0.00026,2]
[385765358,1758029443847,-515.95536276,0.00026,10]
[385765359,1758029443857,-150.0,0.00026,4]
[385765360,1758029443867,-599.0,0.00026,3]
[385765361,1758029443876,-150.0,0.00026,3]
[385765362,1758029443885,-1000.0,0.00026,2]
[385765363,1758029443894,-1000.0,0.00026,2]
[385765364,1758029443903,-98.50094339,0.00026,2]
[385765378,1758029449104,-901.49905661,0.00026,2]
[385765379,1758029449114,-1000.0,0.00026,2]
[385765380,1758029449124,-203.0,0.0002602,2]
[385765381,1758029449133,-500.0,0.00026027,2]
[385765382,1758029449143,-500.0,0.00026027,2]
[385765383,1758029449152,-228.06778029,0.00026027,2]
[385765384,1758029449163,-308.58437506,0.00026112,2]
[385765385,1758029449173,-150.0,0.00026133,4]
[385765386,1758029449182,-150.0,0.00026133,4]
[385765387,1758029449191,-150.0,0.00026133,4]
[385765388,1758029449201,-168.0,0.00026164,7]
[385765389,1758029449211,-806.0,0.00026195,2]
[385765390,1758029449219,-542.92,0.00026195,2]
[385765391,1758029449229,-174.83,0.00026195,2]
[385765392,1758029449238,-174.83,0.00026196,2]
[385765393,1758029449247,-542.92,0.00026196,2]
[385765394,1758029449256,-344.42,0.00026196,2]
[385765395,1758029449266,-419.0,0.00026196,2]
[385765396,1758029449278,-174.83,0.00026196,2]
[385765397,1758029449287,-174.83,0.00026196,2]
[385765398,1758029449297,-2094.5493503,0.000262,2]
[385765399,1758029449307,-348.21906544,0.00026229,2]
[385765400,1758029449316,-277.35679052,0.00026254,2]
[385765401,1758029449325,-334.5472959,0.00026254,2]
[385765402,1758029449335,-599.0,0.00026274,3]
[385765403,1758029449344,-150.0,0.00026274,3]
[385765404,1758029449353,-150.0,0.0002632,4]
[385765405,1758029449363,-150.0,0.0002632,4]
[385765406,1758029449372,-150.0,0.0002632,4]
[385765407,1758029449381,-387.85375581,0.00026347,2]
[385765408,1758029449391,-2500.0,0.0002639,2]
[385765409,1758029449400,-15448.17920448,0.000264,2]
[385765410,1758029449905,-10119.85140266,0.000264,2]
[385765411,1758029449914,-280.644245,0.000264,7]
[385765412,1758029449923,-153.60876,0.000264,7]
[385765413,1758029449933,-151.0,0.000264,7]
[385765414,1758029449943,-151.0,0.000264,7]
[385765415,1758029449953,-151.0,0.000264,7]
[385765416,1758029449966,-259.861038,0.000264,7]
[385765417,1758029449976,-151.0,0.000264,7]
[385765418,1758029449985,-150.0,0.000264,4]
[385765419,1758029449994,-1759.72509,0.0002642,2]
[385765420,1758029450005,-427.48844619,0.00026464,2]
[385765421,1758029450015,-234.739584,0.0002648,7]
[385765422,1758029450027,-5081.29694618,0.000265,2]
[385765423,1758029450094,-577.252398,0.000265,2]
[385765424,1758029450117,-4272.31043284,0.000265,2]
[385765425,1758029450144,-3600.82439067,0.000265,2]
[385765426,1758029450154,-37033.62716411,0.000265,2]
[385765433,1758029896416,572.0,0.00030137,120]
[385765438,1758030196981,161.48,0.00012533,2]
[385765439,1758030197178,161.48,0.00013787,2]
[385765440,1758030197402,161.48,0.0001504,2]
[385765441,1758030197624,161.48,0.00016293,2]
[385765442,1758030197898,161.48,0.00017547,2]
[385765443,1758030198123,161.48,0.000188,2]
[385765446,1758030479702,169.0,8.3e-07,2]
[385765476,1758030631637,-161.48,0.00020053,2]
[385765477,1758030631655,-161.48,0.00021307,2]
[385765478,1758030631671,-1200.0,0.00022056,2]
[385765479,1758030631688,-500.0,0.00022057,2]
[385765480,1758030631704,-500.0,0.00022057,2]
[385765481,1758030631720,-500.0,0.00022057,2]
[385765482,1758030631735,-567.75229663,0.00022057,2]
[385765483,1758030631750,-161.48,0.0002256,2]
[385765484,1758030631765,-155.95,0.0002286,2]
[385765485,1758030631780,-163.78,0.0002286,2]
[385765486,1758030631796,-160.0,0.00022991,2]
[385765487,1758030631814,-600.0,0.00023219,2]
[385765488,1758030631832,-172.43,0.00023219,2]
[385765489,1758030631849,-161.48,0.00023813,2]
[385765490,1758030631865,-324.0,0.00024078,2]
[385765491,1758030631882,-515.95536276,0.00024297,2]
[385765492,1758030631900,-1004.0,0.000244,2]
[385765493,1758030631916,-322.67397306,0.000244,2]
[385765494,1758030631935,-78.32602694,0.000244,2]
[385765495,1758030631951,-349.0,0.00024523,2]
[385765496,1758030631968,-349.0,0.00024542,2]
[385765497,1758030631984,-150.0,0.00024546,7]
[385765498,1758030632000,-349.0,0.00024549,2]
[385765499,1758030632016,-349.0,0.00024552,2]
[385765500,1758030632032,-666.0,0.00024559,3]
[385765501,1758030632049,-2188.19,0.00024605,2]
[385765502,1758030632065,-163.78,0.00024614,2]
[385765503,1758030632083,-150.0,0.00024657,2]
[385765504,1758030632100,-1686.53,0.00024664,2]
[385765505,1758030632116,-349.0,0.00024674,2]
[385765506,1758030632132,-9211.34798985,0.00024689,2]
[385765507,1758030632147,-267.46074303,0.00024689,2]
[385765508,1758030632166,-151.0,0.00024689,2]
[385765509,1758030632182,-1762.82956221,0.00024704,2]
[385765510,1758030632198,-979.18320694,0.00024744,2]
[385765511,1758030632213,-500.0,0.00024747,2]
[385765512,1758030632228,-349.0,0.0002477,2]
[385765513,1758030632243,-1500.0,0.00024812,2]
[385765514,1758030632258,-276.64,0.00024817,8]
[385765515,1758030632273,-349.0,0.00024846,2]
[385765516,1758030632289,-349.0,0.00024853,2]
[385765517,1758030632305,-179.43,0.00024858,2]
[385765518,1758030632321,-434.85,0.00024861,2]
[385765519,1758030632330,-1260.0,0.0002488,2]
[385765520,1758030632340,-755.0,0.0002488,2]
[385765521,1758030632349,-2039.0,0.0002488,2]
[385765522,1758030632359,-3390.0,0.0002488,2]
[385765523,1758030632368,-898.0,0.0002488,2]
[385765524,1758030632378,-1178.0,0.0002488,2]
[385765525,1758030632388,-1581.0,0.0002488,2]
[385765526,1758030632397,-520.6861199,0.0002488,2]
[385765527,1758030632409,-782.3138801,0.0002488,2]
[385765528,1758030632419,-602.0,0.0002488,2]
[385765529,1758030632428,-505.67052263,0.0002488,2]
[385765530,1758030632440,-307.32947737,0.0002488,2]
[385765531,1758030632449,-1905.10640731,0.0002488,2]
[385765532,1758030632465,-1462.17098284,0.0002488,2]
[385765533,1758030633012,-2809.72260985,0.0002488,2]
[385765534,1758030633022,-4171.0,0.0002488,2]
[385765535,1758030633032,-151.0,0.00024882,7]
[385765536,1758030633043,-200.0,0.00024885,2]
[385765537,1758030633054,-322.6107,0.00024885,2]
[385765538,1758030633064,-500.0,0.00024885,2]
[385765539,1758030633077,-500.0,0.00024885,2]
[385765540,1758030633087,-500.0,0.00024885,2]
[385765541,1758030633096,-450.0,0.00024885,2]
[385765542,1758030633107,-500.0,0.00024885,2]
[385765543,1758030633117,-250.0,0.00024885,2]
[385765544,1758030633127,-500.0,0.00024885,2]
[385765545,1758030633138,-151.0,0.00024885,2]
[385765546,1758030633148,-151.0,0.00024885,2]
[385765547,1758030633159,-164.38682755,0.00024885,2]
[385765548,1758030633169,-500.0,0.00024885,2]
[385765549,1758030633179,-250.0,0.00024885,2]
[385765550,1758030633189,-207.4,0.00024885,2]
[385765551,1758030633198,-500.0,0.00024885,2]
[385765552,1758030633208,-250.0,0.00024885,2]
[385765553,1758030633218,-250.0,0.00024885,2]
[385765554,1758030633228,-188.75986269,0.00024885,2]
[385765555,1758030633249,-311.24013731,0.00024885,2]
[385765556,1758030633259,-161.28066317,0.00024885,2]
[385765557,1758030636665,-229.75025518,0.00022055,2]
[385765558,1758030636675,-348.63471691,0.0002488,2]
[385765585,1758030637545,-377.36528309,0.0002488,2]
[385765586,1758030637554,-88.71933683,0.00024885,2]
[385765587,1758030637564,-500.0,0.00024885,2]
[385765588,1758030637575,-500.0,0.00024885,2]
[385765589,1758030637585,-250.0,0.00024885,2]
[385765590,1758030637594,-250.0,0.00024885,2]
[385765591,1758030637604,-500.0,0.00024885,2]
[385765592,1758030637613,-250.0,0.00024885,2]
[385765593,1758030637622,-500.0,0.00024885,2]
[385765594,1758030637632,-250.0,0.00024885,2]
[385765595,1758030637642,-500.0,0.00024885,2]
[385765596,1758030637657,-250.0,0.00024885,2]
[385765597,1758030637667,-500.0,0.00024885,2]
[385765598,1758030637676,-250.0,0.00024885,2]
[385765599,1758030637686,-250.0,0.00024885,2]
[385765600,1758030637695,-151.0,0.00024885,2]
[385765601,1758030637704,-160.0,0.00024885,2]
[385765602,1758030637713,-500.0,0.00024885,2]
[385765603,1758030637723,-500.0,0.00024885,2]
[385765604,1758030637732,-500.0,0.00024885,2]
[385765605,1758030637741,-500.0,0.00024885,2]
[385765606,1758030637751,-500.0,0.00024885,2]
[385765607,1758030637760,-500.0,0.00024885,2]
[385765609,1758030637770,-500.0,0.00024885,2]
[385765611,1758030637781,-500.0,0.00024885,2]
[385765613,1758030637790,-500.0,0.00024885,2]
[385765615,1758030637799,-500.0,0.00024885,2]
[385765617,1758030637813,-500.0,0.00024885,2]
[385765619,1758030637824,-191.70048599,0.00024885,2]
[385765621,1758030637833,-500.0,0.00024885,2]
[385765623,1758030637842,-250.0,0.00024885,2]
[385765625,1758030637853,-250.0,0.00024885,2]
[385765627,1758030637862,-250.0,0.00024885,2]
[385765629,1758030637872,-250.0,0.00024885,2]
[385765631,1758030637883,-1000.0,0.00024885,2]
[385765633,1758030637892,-250.0,0.00024885,2]
[385765636,1758030637901,-1000.0,0.00024885,2]
[385765639,1758030637911,-250.0,0.00024885,2]
[385765664,1758030638106,-151.0,0.00024885,2]
[385765667,1758030638130,-151.0,0.00024885,2]
[385765669,1758030638139,-1000.0,0.00024885,2]
[385765671,1758030638148,-151.0,0.00024885,2]
[385765673,1758030638158,-151.0,0.00024885,2]
[385765675,1758030638168,-500.0,0.00024885,2]
[385765677,1758030638177,-1000.0,0.00024885,2]
[385765679,1758030638186,-151.0,0.00024885,2]
[385765681,1758030638196,-151.0,0.00024885,2]
[385765683,1758030638205,-500.0,0.00024885,2]
[385765685,1758030638215,-1000.0,0.00024885,2]
[385765687,1758030638225,-151.0,0.00024885,2]
[385765689,1758030638234,-151.0,0.00024885,2]
[385765691,1758030638244,-500.0,0.00024885,2]
[385765693,1758030638255,-1000.0,0.00024885,2]
[385765695,1758030638264,-151.0,0.00024885,2]
[385765697,1758030638274,-151.0,0.00024885,2]
[385765699,1758030638284,-500.0,0.00024885,2]
[385765701,1758030638293,-1000.0,0.00024885,2]
[385765703,1758030638303,-1000.0,0.00024885,2]
[385765705,1758030638312,-151.0,0.00024885,2]
[385765707,1758030638322,-151.0,0.00024885,2]
[385765709,1758030638336,-1000.0,0.00024885,2]
[385765711,1758030638345,-500.0,0.00024885,2]
[385765713,1758030638355,-1000.0,0.00024885,2]
[385765715,1758030638364,-151.0,0.00024885,2]
[385765717,1758030638374,-151.0,0.00024885,2]
[385765719,1758030638383,-1000.0,0.00024885,2]
[385765721,1758030638392,-500.0,0.00024885,2]
[385765723,1758030638402,-1000.0,0.00024885,2]
[385765725,1758030638412,-151.0,0.00024885,2]
[385765727,1758030638425,-151.0,0.00024885,2]
[385765729,1758030638444,-500.0,0.00024885,2]
[385765731,1758030638461,-1000.0,0.00024885,2]
[385765733,1758030638472,-1000.0,0.00024885,2]
[385765735,1758030638482,-1000.0,0.00024885,2]
[385765737,1758030638491,-151.0,0.00024885,2]
[385765738,1758030638500,-151.0,0.00024885,2]
[385765740,1758030638509,-500.0,0.00024885,2]
[385765742,1758030638520,-1000.0,0.00024885,2]
[385765744,1758030638529,-151.0,0.00024885,2]
[385765746,1758030638539,-1000.0,0.00024885,2]
[385765748,1758030638550,-151.0,0.00024885,2]
[385765750,1758030638560,-1000.0,0.00024885,2]
[385765752,1758030638569,-151.0,0.00024885,2]
[385765754,1758030638585,-500.0,0.00024885,2]
[385765756,1758030638594,-151.0,0.00024885,2]
[385765758,1758030638604,-1000.0,0.00024885,2]
[385765760,1758030638613,-1000.0,0.00024885,2]
[385765762,1758030638624,-151.0,0.00024885,2]
[385765764,1758030638634,-500.0,0.00024885,2]
[385765767,1758030638643,-151.0,0.00024885,2]
[385765768,1758030638654,-1000.0,0.00024885,2]
[385765771,1758030638665,-500.0,0.00024885,2]
[385765773,1758030638675,-1000.0,0.00024885,2]
[385765775,1758030638685,-500.0,0.00024885,2]
[385765776,1758030638694,-1000.0,0.00024885,2]
[385765778,1758030638704,-1000.0,0.00024885,2]
[385765780,1758030638714,-500.0,0.00024885,2]
[385765782,1758030638723,-151.0,0.00024885,2]
[385765784,1758030638732,-500.0,0.00024885,2]
[385765786,1758030638742,-500.0,0.00024885,2]
[385765789,1758030638752,-500.0,0.00024885,2]
[385765791,1758030638761,-500.0,0.00024885,2]
[385765793,1758030638771,-500.0,0.00024885,2]
[385765795,1758030638780,-500.0,0.00024885,2]
[385765797,1758030638790,-500.0,0.00024885,2]
[385765799,1758030638800,-500.0,0.00024885,2]
[385765800,1758030638814,-500.0,0.00024885,2]
[385765803,1758030638827,-500.0,0.00024885,2]
[385765805,1758030638836,-500.0,0.00024885,2]
[385765806,1758030638847,-151.0,0.00024885,2]
[385765808,1758030638856,-151.0,0.00024885,2]
[385765810,1758030638865,-151.0,0.00024885,2]
[385765813,1758030638874,-151.0,0.00024885,2]
[385765814,1758030638884,-151.0,0.00024885,2]
[385765816,1758030638893,-151.0,0.00024885,2]
[385765818,1758030638903,-151.0,0.00024885,2]
[385765820,1758030638912,-151.0,0.00024885,2]
[385765822,1758030638922,-151.0,0.00024885,2]
[385765824,1758030638931,-151.0,0.00024885,2]
[385765827,1758030638941,-151.0,0.00024885,2]
[385765829,1758030638950,-151.0,0.00024885,2]
[385765831,1758030638961,-17627.74733791,0.000249,2]
[385765833,1758030638971,-164.19,0.00024918,2]
[385765835,1758030638980,-7556.27,0.00024937,7]
[385765837,1758030638990,-152.34188959,0.0002494,2]
[385765839,1758030638999,-176.51,0.00024956,2]
[385765841,1758030639008,-168.0,0.00025021,2]
[385765843,1758030639017,-161.48,0.00025067,2]
[385765845,1758030639028,-168.0,0.00025104,2]
[385765847,1758030639037,-152.0,0.00025122,3]
[385765849,1758030639047,-229.34355324,0.00025122,3]
[385765851,1758030639056,-349.0,0.00025134,2]
[385765853,1758030639066,-349.0,0.0002515,2]
[385765855,1758030639077,-150.0,0.000252,4]
[385765857,1758030639087,-150.0,0.000252,4]
[385765859,1758030639096,-150.0,0.000252,4]
[385765861,1758030639105,-150.0,0.000252,4]
[385765863,1758030639114,-150.0,0.000252,4]
[385765865,1758030639123,-150.0,0.000252,4]
[385765867,1758030639133,-150.0,0.000252,4]
[385765869,1758030639142,-152.49015848,0.000252,4]
[385765871,1758030639151,-150.0,0.000252,4]
[385765873,1758030639162,-150.0,0.000252,4]
[385765875,1758030639171,-150.0,0.000252,4]
[385765877,1758030639181,-284.84559526,0.000252,4]
[385765879,1758030639190,-150.0,0.000252,4]
[385765881,1758030639200,-150.0,0.000252,4]
[385765883,1758030639209,-168.0,0.00025235,2]
[385765885,1758030639219,-151.0,0.00025237,2]
[385765887,1758030639228,-349.0,0.00025272,2]
[385765889,1758030639237,-349.0,0.00025421,2]
[385765891,1758030639246,-200.0,0.00025433,2]
[385765893,1758030639256,-151.0,0.00025433,2]
[385765895,1758030639265,-151.0,0.00025433,2]
[385765897,1758030639274,-393.0,0.0002558,2]
[385765899,1758030639283,-164.69111625,0.00025583,3]
[385765901,1758030639292,-152.0,0.00025583,3]
[385765903,1758030639302,-160.0,0.00025583,3]
[385765905,1758030639311,-237.69938356,0.00025583,3]
[385765906,1758030639321,-151.0,0.00025583,3]
[385765907,1758030639331,-154.0,0.00025583,3]
[385765908,1758030639340,-151.0,0.00025583,3]
[385765909,1758030639349,-151.0,0.00025583,3]
[385765910,1758030639358,-151.0,0.00025583,3]
[385765912,1758030639368,-152.0,0.00025583,3]
[385765913,1758030639377,-548.0,0.00025583,3]
[385765914,1758030639386,-151.0,0.00025583,3]
[385765915,1758030639395,-151.0,0.00025583,3]
[385765917,1758030639404,-548.0,0.00025583,3]
[385765919,1758030639414,-152.0,0.00025583,3]
[385765921,1758030639423,-154.0,0.00025583,3]
[385765924,1758030639433,-151.0,0.00025583,3]
[385765926,1758030639443,-548.0,0.00025583,3]
[385765928,1758030639452,-152.8277897,0.00025583,3]
[385765930,1758030639462,-151.0,0.00025583,3]
[385765932,1758030639471,-152.0,0.00025583,3]
[385765934,1758030639480,-548.0,0.00025583,3]
[385765936,1758030639489,-165.87903939,0.00025583,3]
[385765938,1758030639498,-548.0,0.00025583,3]
[385765940,1758030639507,-152.0,0.00025583,3]
[385765942,1758030639517,-548.0,0.00025583,3]
[385765944,1758030639526,-152.0,0.00025583,3]
[385765946,1758030639536,-548.0,0.00025583,3]
[385765948,1758030639545,-152.0,0.00025583,3]
[385765950,1758030639554,-548.0,0.00025583,3]
[385765952,1758030639565,-152.0,0.00025583,3]
[385765954,1758030639574,-553.00746009,0.00025583,3]
[385765956,1758030639584,-152.0,0.00025583,3]
[385765958,1758030639593,-152.0,0.00025583,3]
[385765960,1758030639603,-152.0,0.00025583,3]
[385765962,1758030639612,-152.0,0.00025583,3]
[385765964,1758030639622,-152.0,0.00025583,3]